Cogmind - Beta 15 @@@ ROGUE MODE // 2025.08.21 @ 22:37:31 Player: NQH Result: Destroyed by H-66 Slayer with Gauss Rifle Performance ------------- Evolutions (5) 2500 Regions Visited (7) 1400 Robots Destroyed (30) 150 Value Destroyed (1253) 1253 Prototype IDs (2) 40 Alien Tech Used (0) 0 Bonus (202) 202 TOTAL SCORE: 5545 Bonus ------- High Alert Combat Kills 2 Entered Garrisons 200 Cogmind --------- Core Integrity 0/1000 Matter 272/300 Energy 31/100 System Corruption 0% Temperature Cool (0) Movement Core (50) Location -5/Garrison Parts ------- > --- POWER (2) -------- (None) > --- PROPULSION (4) --- (None) > --- UTILITY (9) ------ Advanced Heat Sink Advanced Visual Processing Unit Hacking Suite > --- WEAPON (2) ------- (None) > --- INVENTORY (5) ---- Improved Datajack Remote Datajack Peak State ------------ > --- POWER ------------ Micro Nuclear Core Micro Nuclear Core > --- PROPULSION ------- VTOL Module VTOL Module VTOL Module > --- UTILITY ---------- Weight Redist. System Advanced Visual Processing Unit Advanced Visual Processing Unit Improved Melee Analysis Suite Transmission Jammer Improved Propulsion Shielding Hacking Suite Hacking Suite > --- WEAPON ----------- Heavy Riot Gun Chainsword > --- INVENTORY -------- Heavy Missile Launcher Improved Datajack Remote Datajack [Rating: 48] Favorites ----------- Power Ion Engine Engine Ion Engine Power Core Micro Nuclear Core Propulsion VTOL Module Treads Advanced Treads Leg Aluminum Leg Flight Unit VTOL Module Utility Advanced Visual Processing Unit Device Weight Redist. System Storage Medium Storage Unit Processor Advanced Visual Processing Unit Hackware Hacking Suite Protection Backup Plating I Weapon Light Assault Rifle Energy Gun Medium Laser Ballistic Gun Light Assault Rifle Launcher Heavy Missile Launcher Special Weapon Welding Torch Slashing Weapon Katana Special Melee Weapon Datajack Build | -11 -10 -9 -8 -7 -6 -5 -5 ------- Run | Yrd Mat Mat Mat Fac Fac Fac Gar Slots Evolved 10 | . . 2 2 2 2 2 . Power 1 | . . . . . . 1 . Propulsion 2 | . . . 2 . . . . Utility 7 | . . 2 . 2 2 1 . Weapon . | . . . . . . . . Parts Attached 60 | 6 5 14 10 16 2 1 6 Power 9 | 1 . 1 3 2 . 1 1 Engine 4 | 1 . . 2 1 . . . Core 5 | . . 1 1 1 . 1 1 Reactor . | . . . . . . . . Propulsion 18 | 2 . 7 2 5 . . 2 Treads 5 | . . 5 . . . . . Leg 4 | 2 . . . . . . 2 Wheel . | . . . . . . . . Hover . | . . . . . . . . Flight 9 | . . 2 2 5 . . . Utility 16 | 1 2 2 2 6 2 . 1 Device 4 | . . . . 2 1 . 1 Storage 2 | 1 1 . . . . . . Processor 5 | . . 2 1 2 . . . Hackware 2 | . . . 1 . 1 . . Protection 3 | . 1 . . 2 . . . Artifact . | . . . . . . . . Weapon 17 | 2 3 4 3 3 . . 2 Energy Gun 6 | 2 . 1 1 . . . 2 Energy Cannon . | . . . . . . . . Ballistic Gun 4 | . 1 3 . . . . . Ballistic Cannon . | . . . . . . . . Launcher 2 | . 1 . . 1 . . . Special Weapon 1 | . 1 . . . . . . Impact Weapon . | . . . . . . . . Slashing Weapon 2 | . . . . 2 . . . Piercing Weapon . | . . . . . . . . Special Melee Weapon 2 | . . . 2 . . . . Unidentified Prototypes 2 | . . 1 1 . . . . Corrupted Parts 1 | . . 1 . . . . . System Corruption 10 | . . 10 . . . . . Parts Lost 31 | . 1 8 4 2 . . 16 Power 4 | . . 2 1 . . . 1 Propulsion 10 | . . 3 1 1 . . 5 Utility 9 | . . 1 1 1 . . 6 Weapon 8 | . 1 2 1 . . . 4 Highest Loss Streak 16 | . 1 5 3 1 . . 16 To Critical Strikes . | . . . . . . . . Average Backups 4 | . . 7 4 4 4 3 3 Power . | . . . . . 1 . . Propulsion 1 | . . 3 1 . . . . Utility . | . . . . 2 1 . . Weapon . | . . . . . . 1 1 Tool/Special . | . . . . . . . . Unused Backups 4 | . . 1 . 1 . . 2 Power . | . . . . . . . . Propulsion . | . . . . . . . . Utility 1 | . . . . 1 . . . Weapon 1 | . . 1 . . . . . Tool/Special 2 | . . . . . . . 2 Average Slot Usage (%) 80 | . 91 73 72 85 81 76 67 Engine 6 | . 14 6 7 4 . . . Core 1 | . . 1 . 1 6 11 7 Treads 3 | . . 14 1 . . . . Leg 4 | . 28 . . . . . . Flight 13 | . . 2 17 26 20 17 12 Device 5 | . . . . 11 6 5 9 Storage 4 | . 14 11 . . . . . Processor 15 | . . 14 25 21 20 17 13 Hackware 4 | . . . 6 7 13 11 10 Protection 4 | . 9 4 . 2 6 5 3 Energy Gun 2 | . 8 3 . . . . . Ballistic Gun 5 | . 7 13 11 . . . . Special Weapon 1 | . 8 1 . . . . . Slashing Weapon 3 | . . . . 6 6 5 4 Peak Build Rating 48 | 6 7 21 28 38 44 44 48 Average Rating 23 | 4 6 14 21 33 38 43 36 On Entrance 20 | . 6 7 14 16 37 38 44 Naked Turns . | . . . . . . . . Heaviest Build 23 | 13 23 20 12 18 12 18 22 Greatest Support 45 | 20 20 45 44 23 18 18 18 Greatest Overweight (x) 5 | 1 1 5 1 . . . 2 Average Overweight (x) . | . . . . . . . . Largest Inventory Capacity 10 | 8 10 10 10 5 5 5 5 Average Capacity 6 | 6 9 10 5 5 5 5 5 Most Carried 10 | 1 2 10 7 5 5 4 5 Average Carried 4 | . . 7 4 4 4 3 3 Final Capacity 10 | 8 10 10 5 5 5 5 5 Final Carried 7 | . 2 7 5 5 5 3 2 Class Distribution -------------------- 49% | Mutant 23% | Sprinter 15% | Scavenger-Sprinter 8% | Hacker-Sprinter Dominant Class ---------------- Mutant | -10/Materials Mutant | -9/Materials Mutant | -8/Materials Sprinter | -7/Factory Hacker-Sprinter | -6/Factory Hacker-Sprinter | -5/Factory Hacker-Sprinter | -5/Garrison Resources | -11 -10 -9 -8 -7 -6 -5 -5 ----------- Run | Yrd Mat Mat Mat Fac Fac Fac Gar Matter Collected 1068 | 232 53 411 30 196 . . 146 Remotely . | . . . . . . . . Salvage Created 1071 | . 102 543 . 181 . . 245 Parts 57 | . 4 31 . 14 . . 8 Haulers Intercepted . | . . . . . . . . Recyclers Shooed 2 | . 2 . . . . . . Parts Field Recycled . | . . . . . . . . Retrieved Matter . | . . . . . . . . Parts Self-Destructed . | . . . . . . . . Prevented . | . . . . . . . . Kills | -11 -10 -9 -8 -7 -6 -5 -5 ------- Run | Yrd Mat Mat Mat Fac Fac Fac Gar Combat Hostiles Destroyed 27 | . 4 14 . 5 . . 4 Melee 8 | . . . . 5 . . 3 Guns 14 | . 1 13 . . . . . AOE 5 | . 3 1 . . . . 1 Classes Destroyed 7 | . 2 3 . 2 . . . Recycler 1 | . . 1 . . . . . Operator 1 | . 1 . . . . . . Watcher 1 | . . . . 1 . . . Swarmer 8 | . . 5 . 3 . . . Grunt 17 | . 4 8 . 1 . . 4 Sentry 1 | . . 1 . . . . . Programmer 1 | . . . . 1 . . . Best Kill Streak 5 | . 4 5 . 2 . . 1 Combat Bots Only 5 | . 4 5 . 2 . . 1 Max Kills in Single Turn 1 | . 1 1 . 1 . . 1 Gunslinging . | . . . . . . . . Exploded 1 | . 1 1 . . . . 1 Melee 1 | . . . . 1 . . 1 Uniques/NPCs Destroyed . | . . . . . . . . Combat | -11 -10 -9 -8 -7 -6 -5 -5 -------- Run | Yrd Mat Mat Mat Fac Fac Fac Gar Hostile Shots Fired 364 | . 29 154 39 35 . . 107 Missed 124 | . 6 55 19 16 . . 28 Hits 240 | . 23 99 20 19 . . 79 Melee 8 | . . . 4 . . . 4 Projectile 232 | . 23 99 16 19 . . 75 AOE 1 | . . . 1 . . . . Critical Strikes 9 | . 3 . 3 1 . . 2 Part Disruptions 1 | . . 1 . . . . . Damage Taken 4095 | . 409 1174 487 246 . . 1779 Core 1533 | . 61 276 125 71 . . 1000 Absorbed by Shields 39 | . . . . 34 . . 5 Redirected to Shielding 114 | . . . . 14 . . 100 Core Remaining (%) 78 | 100 75 31 77 89 100 . . Volleys Fired 119 | . 56 57 . . . . 6 Largest 2 | . 2 2 . . . . 1 Hottest 90 | . 90 85 . . . . 69 Shots Fired 187 | . 75 106 . . . . 6 Gun 145 | . 35 106 . . . . 4 Cannon . | . . . . . . . . Launcher 8 | . 6 . . . . . 2 Special 34 | . 34 . . . . . . Kinetic 93 | . 6 87 . . . . . Thermal 85 | . 63 19 . . . . 3 Explosive 8 | . 6 . . . . . 2 Electromagnetic 1 | . . . . . . . 1 Robot Hit Streak 6 | . 5 6 . . . . 5 Robot Miss Streak 5 | . 4 5 . . . . 1 Penetration Max . | . . . . . . . . Secondary Targets 1 | . . 1 . . . . . Max Gunslinging Chain 1 | . . 1 . . . . . Shots Hit Robots 118 | . 23 62 1 15 . . 17 Core Hits 67 | 1 15 33 . 6 . . 12 Critical Kills . | . . . . . . . . Critical Parts Destroyed . | . . . . . . . . Critical Strikes 8 | . . 1 . 3 . . 4 Burn 1 | . . 1 . . . . . Sever 7 | . . . . 3 . . 4 Melee Attacks 49 | . . . 1 20 . . 28 Impact . | . . . . . . . . Slashing 48 | . . . . 20 . . 28 Piercing . | . . . . . . . . Sneak Attacks 1 | . . . . . . . 1 Combat Hostiles 1 | . . . . . . . 1 Follow-up Attacks . | . . . . . . . . Damage Inflicted 2854 | 2 682 860 . 541 . . 769 Guns 995 | . 193 737 . . . . 65 Cannons . | . . . . . . . . Explosions 844 | . 479 122 . . . . 243 Melee 999 | . . . . 541 . . 458 Ramming 13 | 2 7 1 . . . . 3 Kinetic 595 | . 12 583 . . . . . Thermal 395 | . 184 154 . . . . 57 Explosive 722 | . 479 . . . . . 243 Electromagnetic 130 | . . 122 . . . . 8 Impact . | . . . . . . . . Slashing 999 | . . . . 541 . . 458 Piercing . | . . . . . . . . Highest Corruption 10 | . . 10 . 1 . . . Average Corruption 8 | . . 10 . 1 . . . Corruption Purged . | . . . . . . . . Corruption Blocked . | . . . . . . . . Effects 9 | . . 9 . . . . . Message Errors 2 | . . 2 . . . . . Matter Fused 1 | . . 1 . . . . . Heat Flow Errors 2 | . . 2 . . . . . Energy Discharges 1 | . . 1 . . . . . Data Loss (minor) 1 | . . 1 . . . . . Misfires 1 | . . 1 . . . . . Misdirections 1 | . . 1 . . . . . Overload Shots . | . . . . . . . . Overflow Damage 126 | . 81 2 . 23 . . 20 Projectiles . | . . . . . . . . Explosions 103 | . 81 2 . . . . 20 Melee 23 | . . . . 23 . . . Knockbacks . | . . . . . . . . Impact . | . . . . . . . . Kinetic . | . . . . . . . . Secondary . | . . . . . . . . Self-Inflicted Damage 274 | . 100 51 . . . . 123 Shots 6 | . 2 2 . . . . 2 Rammed 2 | . . 1 . . . . 1 Targets Rammed 6 | 1 3 1 . . . . 1 Kicked 4 | 1 3 . . . . . . Crushed . | . . . . . . . . Highest Temperature 409 | . 409 284 . 2 . . 14 Average Temperature 144 | . 257 58 . 2 . . 6 Received Heat Transfer 1119 | . 237 516 36 78 . . 252 Effects 4 | . 4 . . . . . . Shutdowns 2 | . 2 . . . . . . Matter Decay 1 | . 1 . . . . . . Damage (minor) 1 | . 1 . . . . . . Siege Activations . | . . . . . . . . Martial Activations . | . . . . . . . . Shielding Activations . | . . . . . . . . Robots Disrupted 1 | . . 1 . . . . . Combat Hostiles 1 | . . 1 . . . . . Robots Corrupted . | . . . . . . . . Combat Hostiles . | . . . . . . . . Parts Fried . | . . . . . . . . Impact Corruptions . | . . . . . . . . Robots Melted . | . . . . . . . . Combat Hostiles . | . . . . . . . . Parts Melted . | . . . . . . . . Heat Transferred 1075 | . 520 444 . . . . 111 Parts Sabotaged . | . . . . . . . . Parts Stolen . | . . . . . . . . Parts Stripped . | . . . . . . . . Power Chain Reactions 1 | . . 1 . . . . . Alert | -11 -10 -9 -8 -7 -6 -5 -5 ------- Run | Yrd Mat Mat Mat Fac Fac Fac Gar Maximum Alert Level 2 | . . 2 . . . . . Low Security (%) 92 | 100 100 63 100 100 100 100 100 Level 1 6 | . . 31 . . . . . Level 2 1 | . . 5 . . . . . Level 3 . | . . . . . . . . Level 4 . | . . . . . . . . Level 5 . | . . . . . . . . High Security . | . . . . . . . . Max Security . | . . . . . . . . Peak Influence 429 | . 124 429 169 157 . . 76 Initial 169 | . . . 169 30 . . . Average 65 | . 43 127 115 47 . . 37 Influence Increases 1469 | . 159 705 60 337 . . 208 Destroy 0b10 Robot/C 540 | . 80 280 . 100 . . 80 Destroy 0b10 Robot/NC 15 | . 5 5 . 5 . . . Destroy Leader 112 | . 20 70 . 22 . . . Allied During Kill 4 | . . . . . . . 4 Disable Machine 75 | . 30 45 . . . . . Anti-Garrison Action 50 | . . . . . . . 50 Destroy Structure 43 | . 24 5 . . . . 14 Partial Spotted 30 | . . . 15 15 . . . Lose Combat Pursuer 600 | . . 300 45 195 . . 60 Influence Decreases 1457 | . 159 302 394 406 . . 196 Entered New Map 273 | . . . 234 39 . . . Time Decay 693 | . 149 222 120 202 . . . Lost Part 306 | . 10 80 40 20 . . 156 Lost Ally 40 | . . . . . . . 40 Purge Threat 145 | . . . . 145 . . . Squads Dispatched 11 | . 2 2 1 6 . . . Investigation 3 | . . . . 3 . . . Extermination 2 | . . . . 2 . . . Reinforcement 6 | . 2 2 1 1 . . . Assault . | . . . . . . . . Garrison . | . . . . . . . . Intercept . | . . . . . . . . Searches Triggered . | . . . . . . . . Construction Impeded . | . . . . . . . . Haulers Reinforced . | . . . . . . . . Active Scanning Responses . | . . . . . . . . Cargo Convoy Interrupts . | . . . . . . . . Stealth | -11 -10 -9 -8 -7 -6 -5 -5 --------- Run | Yrd Mat Mat Mat Fac Fac Fac Gar Distress Signals 6 | . . 4 1 . 1 . . Communications Jammed . | . . . . . . . . Distress Signals . | . . . . . . . . Times Spotted 98 | . 6 44 14 23 2 . 9 Peak Tracking Total 13 | . 3 13 10 4 2 . 4 Tactical Retreats 17 | . . 5 1 8 . . 3 Traps | -11 -10 -9 -8 -7 -6 -5 -5 ------- Run | Yrd Mat Mat Mat Fac Fac Fac Gar Traps Triggered 2 | . . . . . . . 2 Indirectly . | . . . . . . . . Trap Hack Attempts . | . . . . . . . . Triggered . | . . . . . . . . Disarmed . | . . . . . . . . Reprogrammed . | . . . . . . . . Reused . | . . . . . . . . Traps Extracted . | . . . . . . . . Installed . | . . . . . . . . Triggered . | . . . . . . . . Machines | -11 -10 -9 -8 -7 -6 -5 -5 ---------- Run | Yrd Mat Mat Mat Fac Fac Fac Gar Machines Disabled 6 | . 2 3 . . . . 1 Max in Single Turn 2 | . 1 2 . . . . 1 Garrison Relay 2 | . . . . . . . 2 Machines Repaired . | . . . . . . . . Machines Dismantled . | . . . . . . . . Machines Sabotaged . | . . . . . . . . Overloaded Fab Kills . | . . . . . . . . Hacking | -11 -10 -9 -8 -7 -6 -5 -5 --------- Run | Yrd Mat Mat Mat Fac Fac Fac Gar Machines Accessed 7 | . 1 . . 5 . 1 . Terminals 6 | . 1 . . 5 . . . Fabricators . | . . . . . . . . Repair Stations . | . . . . . . . . Recycling Units . | . . . . . . . . Scanalyzers . | . . . . . . . . Garrison Access 1 | . . . . . . 1 . Total Hacks 13 | . 1 . . 11 . 1 . Successful 4 | . 1 . . 2 . 1 . Failed 9 | . . . . 9 . . . Catastrophic 7 | . . . . 7 . . . Database Lockouts . | . . . . . . . . Manual 3 | . . . . 3 . . . Terminals 12 | . 1 . . 11 . . . Fabricators . | . . . . . . . . Repair Stations . | . . . . . . . . Recycling Units . | . . . . . . . . Scanalyzers . | . . . . . . . . Garrison Access 1 | . . . . . . 1 . Terminal Hacks 3 | . 1 . . 2 . . . Unreport Threat 1 | . . . . 1 . . . Assault Status 1 | . . . . 1 . . . Recall Reinforcements 1 | . 1 . . . . . . Fabricator Hacks . | . . . . . . . . Repair Station Hacks . | . . . . . . . . Recycling Unit Hacks . | . . . . . . . . Scanalyzer . | . . . . . . . . Garrison Access Hacks 1 | . . . . . . 1 . Unlock Access 1 | . . . . . . 1 . Unauthorized Hacks . | . . . . . . . . Terminals . | . . . . . . . . Fabricators . | . . . . . . . . Repair Stations . | . . . . . . . . Recycling Units . | . . . . . . . . Scanalyzers . | . . . . . . . . Garrison Access . | . . . . . . . . Data Cores Recovered 1 | . 1 . . . . . . Used . | . . . . . . . . Hacking Detections 4 | . . . . 4 . . . Full Trace Events 3 | . . . . 3 . . . Feedback Events 1 | . . . . 1 . . . Corruption 1 | . . . . 1 . . . Feedback Blocked . | . . . . . . . . Robot Schematics Acquired . | . . . . . . . . Robots Built . | . . . . . . . . Authchips . | . . . . . . . . Time . | . . . . . . . . Total Robot Build Rating . | . . . . . . . . Part Schematics Acquired . | . . . . . . . . Parts Built . | . . . . . . . . Authchips . | . . . . . . . . Time . | . . . . . . . . Total Part Build Rating . | . . . . . . . . Parts Repaired . | . . . . . . . . Time . | . . . . . . . . Parts Recycled . | . . . . . . . . Recycled Matter . | . . . . . . . . Retrieved Matter . | . . . . . . . . Retrieved Components . | . . . . . . . . Parts Scanalyzed . | . . . . . . . . Part Schematics Acquired . | . . . . . . . . Parts Damaged . | . . . . . . . . Bothacking | -11 -10 -9 -8 -7 -6 -5 -5 ------------ Run | Yrd Mat Mat Mat Fac Fac Fac Gar Used RIF Installer . | . . . . . . . . Robots Hacked . | . . . . . . . . Non-combat . | . . . . . . . . Combat . | . . . . . . . . Robot Hacks Applied . | . . . . . . . . Relay Couplers Released 8 | . . . . . . . 8 Machine Destruction 8 | . . . . . . . 8 Fabnet Peak Effective % . | . . . . . . . . Robots Rewired . | . . . . . . . . Allies Hacked . | . . . . . . . . Hacks Repelled . | . . . . . . . . Allies | -11 -10 -9 -8 -7 -6 -5 -5 -------- Run | Yrd Mat Mat Mat Fac Fac Fac Gar Total Allies 2 | . . . . . . . 2 Largest Group 2 | . . . . . . . 2 Highest-Rated Group 160 | . . . . . . . 160 Highest-Rated Ally 80 | . . . . . . . 80 Total Orders . | . . . . . . . . Ally Attacks 8 | . . . . . . . 8 Total Damage 490 | . . . . . . . 490 Kills . | . . . . . . . . Allies Corrupted . | . . . . . . . . Allies Melted . | . . . . . . . . Intel | -11 -10 -9 -8 -7 -6 -5 -5 ------- Run | Yrd Mat Mat Mat Fac Fac Fac Gar Active Infowar (turns) 1852 | . . 372 244 922 103 6 205 Optics 1852 | . . 372 244 922 103 6 205 Jamming 312 | . . . . . 101 6 205 Robot Analysis Total . | . . . . . . . . Derelict Logs Recovered . | . . . . . . . . Drone Launches . | . . . . . . . . Drone Recoveries . | . . . . . . . . Exploration | -11 -10 -9 -8 -7 -6 -5 -5 ------------- Run | Yrd Mat Mat Mat Fac Fac Fac Gar Turns Passed 2623 | 103 420 566 244 922 103 6 259 Spaces Moved 2983 | 77 218 289 393 1384 343 13 266 Core 46 | 5 . 9 . . . . 32 Treads 206 | . . 205 1 . . . . Legs 306 | 72 218 10 . . . . 6 Wheels . | . . . . . . . . Hover . | . . . . . . . . Flight 2425 | . . 65 392 1384 343 13 228 Fastest Speed 26 | 50 120 37 37 26 29 29 29 Average Speed 49 | 118 120 131 38 27 29 29 37 Slowest Speed 300 | 190 190 300 145 52 29 29 150 Overloaded Moves . | . . . . . . . . Propulsion Burnouts . | . . . . . . . . Robots Hopped 15 | . . . 3 7 3 . 2 Potential Cave-ins . | . . . . . . . . Cave-ins Triggered . | . . . . . . . . Exploration Rate (%) 22 | 5 41 33 26 30 12 1 30 Regions Visited 7 Branch Regions . Pre-discovered Areas . | . . . . . . . . Known Exits Taken 1 | . . . . . . 1 . Unknown Exits Taken 6 | 1 1 1 1 1 1 . . Scrap Searched . | . . . . . . . . Spaces Dug 1 | . . . . . . . 1 Terrain Destroyed 44 | . 33 4 . . . . 7 Melee 1 | . . . . . . . 1 Projectile . | . . . . . . . . AOE 43 | . 33 4 . . . . 6 Terrain Rammed . | . . . . . . . . Walls Destroyed . | . . . . . . . . Machines Disabled . | . . . . . . . . Actions | -11 -10 -9 -8 -7 -6 -5 -5 --------- Run | Yrd Mat Mat Mat Fac Fac Fac Gar Total 3861 | 86 295 381 481 1887 343 14 374 Wait 549 | . 5 2 66 447 . . 29 Move 2949 | 77 217 288 387 1370 336 12 262 Hop 12 | . . . 2 6 3 . 1 Pick Up 22 | . 3 8 3 7 . . 1 Fast Attach 42 | 7 4 7 6 13 . . 5 Attach 24 | . 1 5 6 5 2 2 3 Detach 18 | 1 3 5 2 4 2 . 1 Swap 6 | . . 3 1 2 . . . Drop 31 | 1 3 5 7 13 . . 2 Fire 119 | . 56 57 . . . . 6 Melee 49 | . . . 1 20 . . 28 Ram 1 | . . . . . . . 1 Kick 3 | . 3 . . . . . . Crush 1 | . . 1 . . . . . Escape Stasis 35 | . . . . . . . 35 Rewire . | . . . . . . . . Trap . | . . . . . . . . Miscellaneous . | . . . . . . . . Route ------- -11/Scrapyard -10/Materials -9/Materials -8/Materials -7/Factory -6/Factory (discovered 2 exits: *Fac x2) -5/Factory -5/Garrison (discovered 1 exit: [*Fac]) History --------- Turn | Location | Event 7 | -11/Scrapyard | Discovered new exit (range 16) 104 | -11/Scrapyard | Entered Materials 312 | -10/Materials | Build established: Mutant 480 | -10/Materials | Discovered new exit (range 16) 524 | -10/Materials | Entered another Materials area 524 | -9/Materials | Evolved 2 slots: Utility x2 897 | -9/Materials | System corruption reached 10% 1006 | -9/Materials | Lost 5 parts (1p2n2w) 1025 | -9/Materials | Core integrity fell below 50% 1054 | -9/Materials | Discovered new exit (range 10) 1090 | -9/Materials | Entered another Materials area 1090 | -8/Materials | Evolved 2 slots: Propulsion x2 1315 | -8/Materials | Discovered new exit (range 12) 1334 | -8/Materials | Entered Factory 1334 | -7/Factory | Evolved 2 slots: Utility x2 1359 | -7/Factory | Lost 3 parts (1p1n1u) 1578 | -7/Factory | Build established: Sprinter 2127 | -7/Factory | Build established: Scavenger-Sprinter 2240 | -7/Factory | Discovered new exit (range 18) 2256 | -7/Factory | Entered another Factory area 2256 | -6/Factory | Evolved 2 slots: Utility x2 2271 | -6/Factory | Discovered new exit (range 11) 2282 | -6/Factory | Discovered new exit (range 19) 2359 | -6/Factory | Entered another Factory area 2359 | -5/Factory | Evolved 2 slots: Power x1, Utility x1 2365 | -5/Factory | Identified exit to Garrison 2365 | -5/Factory | Entered Garrison 2390 | -5/Garrison | Found embedded Infiltrators 2395 | -5/Garrison | Triggered checkpoint 2400 | -5/Garrison | Spotted B-75 Beast 2432 | -5/Garrison | Garrison Relay disabled 2511 | -5/Garrison | Triggered checkpoint 2550 | -5/Garrison | Discovered new exit (range 12) 2554 | -5/Garrison | Spotted B-75 Beast 2564 | -5/Garrison | Attempted to access garrison exit controls, blocked by remote lockdown 2581 | -5/Garrison | Triggered checkpoint 2590 | -5/Garrison | Garrison Relay disabled 2593 | -5/Garrison | Spotted Striker 2603 | -5/Garrison | Core integrity fell below 50% 2620 | -5/Garrison | Core integrity fell below 20% 2624 | -5/Garrison | Destroyed by H-66 Slayer with Gauss Rifle Last Messages --------------- 02600_ Chainsword destroyed. 02600_ Penetrated by Slug. 02608_ Slammed into Striker. 02608_ Destabilizing: System interference. 02608_ Hvy. Laser temporarily disabled. 02608_ Penetrated by Slug. 02609_ Acquired Carbon-fiber Leg. 02611_ Acquired Adv. Heat Sink. 02613_ Acquired 20 matter. 02615_ Penetrated by Slug. 02617_ Hvy. Riot Gun destroyed. 02618_ Penetrated by Slug. 02618_ Hvy. Laser destroyed. 02619_ G-50 Soldier destroyed. 02621_ Penetrated by Slug. 02621_ Carbon-fiber Leg destroyed. 02622_ Hvy. Missile Launcher destroyed. 02622_ Destroyed Hvy. Missile Launcher. 02624_ Slug penetrates Reinforced Barrier. 02624_ Penetrated by Slug. Map ----- +----------------------------------------------------+ | ?# #???????????????????????????????? | | ?# #???????????????????????????????? | | ?# #???????????????????????????????? | | ?# #???????????????????????????????? | | ?# #???????????????????????????????? | | ?# #???????????????????????????????? | | ?# #???????????????????????????????? | | ?# #???????????????????????????????? | | ?# #???????????????????????????????? | | ?# #???????????????????????????????? | | ?# #???????????????????????????????? | | ?# #???????????????????????????????? | | ?# #???????????????????????????????? | | ?# #???????#####??????????? "??????? | | ?# #???????# #??????????" ""?????? | | ## ######### < ###########" ""?????? | | + ?????? | | * #" ""?????? | | #### ################## " ""?????? | | ???# #????????????????#h " ""?????? | | ???# ??????????????### ""???????? | | ???# ?????????????# #????????? | | ???" ????????????#%K #????????? | | ??"" ???????????#[ #????????? | | ?? ??????????### ###???????? | | ?# ! ???????????# @#"#???????? | | ?#"" ??????????# "#???????? | | ?#"" ??????????# !"#???????? | | ??"" ?????????# !! #???????? | | ?? ! ????????# #"#???????? | | ??? ! ???????##;###???????? | | ???" ????????###?????????? | | ???" ! [ = ????????????????????? | | ???" ??????????????????????? | | ????""" """????????????????????????? | | ????""" "??????????????????????????? | | ???????#????????????????????????????? | | ????????????????????????????????????? | | ????????????????????????????????????? | | ????????????????????????????????????? | | ????????????????????????????????????? | | | | | | | | | | | | | | | | | | | +----------------------------------------------------+ Best States ------------- Heat Dissipation 59 Energy Generation 25 Energy Capacity 290 Matter Stores 300 Matter Capacity 300 Sight Range 20 Terrain Scan Density 10 Jamming Range 12 Additional Mass Support 6 Armor Coverage 80 Propulsion Shielding 66 Evasion (%) 64 Melee Accuracy 6 Recoil Reduction 2 Offensive Hacking 20 Item Schematics ----------------- None Robot Schematics ------------------ None Fabricated ------------ Nothing Repaired ---------- Nothing Alien Tech Used ----------------- None Achievements -------------- None Challenges ------------ None Game ------ Seed WarpHardlightParser Manual? 0 Play Time 00:42:55 Cumulative 16.0 hours Start 2025.08.21 @ 21:28:55 End 2025.08.21 @ 22:37:31 Sessions 1 Manual Loads 0 Difficulty Rogue Special Mode None Game No. 43 Rogue 43 Adventurer 0 Explorer 0 Win Type - Total 0 Types 0/0/0/0/0/0/0/0/0/0 Lore% 9 Gallery% 22 Achievement% 19 Wizard Run 0 Options --------- Layout 1 ASCII 0 Keyboard 1 Movement Vi Keybinds 0 Fullscreen 1 Font 16/SmallcapsGlow Map View 55x38 Zoom Use 0% Tactical HUD 1 Map Filters NONE Filters NONE Steam 1 RUN: 8277f79f-2127-4e25-9aa0-d08f6acd005e